fUSD/lending_fUSD_20251129
["ID","MTS","AMOUNT","RATE_DAILY","PERIOD"]
[395088929,1764420148828,-268.72515562,0.00014758,2]
[395088930,1764420148855,-25.51513774,0.00014758,2]
[395088931,1764420151771,-126.03838026,0.00014758,2]
[395088932,1764420151796,-28.60860063,0.00014758,2]
[395088933,1764420157575,-191.12858206,0.00014758,2]
[395088934,1764420160598,-192.59055502,0.00014758,2]
[395088935,1764420162683,-87.67226229,0.00014758,2]
[395088936,1764420162719,-500.0,0.00014758,2]
[395088937,1764420162751,-500.0,0.00014758,2]
[395088938,1764420162783,-500.0,0.00014758,2]
[395088939,1764420162818,-500.0,0.00014758,2]
[395088940,1764420162853,-500.0,0.00014758,2]
[395088941,1764420162888,-500.0,0.00014758,2]
[395088942,1764420162924,-500.0,0.00014758,2]
[395088943,1764420162958,-500.0,0.00014758,2]
[395088944,1764420162990,-500.0,0.00014758,2]
[395088945,1764420163024,-324.66547542,0.00014758,2]
[395088946,1764420163315,-175.33452458,0.00014758,2]
[395088947,1764420163346,-630.46807406,0.00014758,2]
[395088948,1764420163383,-500.0,0.00014758,2]
[395088949,1764420163415,-529.63996766,0.00014758,2]
[395088950,1764420163448,-500.0,0.00014758,2]
[395088951,1764420163480,-500.0,0.00014758,2]
[395088952,1764420163513,-500.0,0.00014758,2]
[395088953,1764420163544,-500.0,0.00014758,2]
[395088954,1764420163576,-500.0,0.00014758,2]
[395088955,1764420163612,-500.0,0.00014758,2]
[395088956,1764420163792,-500.0,0.00014758,2]
[395088957,1764420163827,-500.0,0.00014758,2]
[395088958,1764420163858,-500.0,0.00014758,2]
[395088959,1764420163888,-447.53137046,0.00014758,2]
[395088960,1764420163920,-324.29630221,0.00014758,2]
[395088961,1764420163952,-500.0,0.00014758,2]
[395088962,1764420163989,-500.0,0.00014758,2]
[395088963,1764420164020,-500.0,0.00014758,2]
[395088964,1764420164049,-500.0,0.00014758,2]
[395088965,1764420164077,-362.35754797,0.00014758,2]
[395088966,1764420165927,-581.0457758,0.00014759,2]
[395088967,1764420170337,-302.0,0.00014759,2]
[395088968,1764420172499,409.61197476,0.00014758,2]
[395088969,1764420173658,-280.49203573,0.00014759,2]
[395088970,1764420175966,-548.96763811,0.00014759,2]
[395088971,1764420181140,-500.0,0.00014759,2]
[395088972,1764420183408,-500.0,0.00014759,2]
[395088973,1764420184528,-244.07286003,0.00014759,2]
[395088974,1764420187608,4404.388215,0.00014685,2]
[395088975,1764420188374,-338.02,0.00014759,2]
[395088976,1764420191358,-553.53658991,0.00014759,2]
[395088977,1764420192918,-500.0,0.00014759,2]
[395088978,1764420195676,-500.0,0.00014759,2]
[395088979,1764420198884,-500.0,0.00014759,2]
[395088980,1764420200013,214.34,0.00014001,2]
[395088981,1764420201794,-300.0,0.00014759,2]
[395088982,1764420203970,-620.3746,0.00014759,2]
[395088983,1764420205246,87428.4976,0.00014659,2]
[395088984,1764420207018,-500.0,0.00014759,2]
[395088985,1764420207994,-162.54441758,0.00014759,2]
[395088986,1764420211880,-500.0,0.00014759,2]
[395088987,1764420213999,-394.41304336,0.00014759,2]
[395088988,1764420216210,-613.24672117,0.00014759,2]
[395088989,1764420219919,-500.0,0.00014759,2]
[395088990,1764420221400,-165.34815311,0.00014759,2]
[395088991,1764420223751,-500.0,0.00014759,2]
[395088992,1764420225899,-500.0,0.00014759,2]
[395088993,1764420228939,-500.0,0.00014759,2]
[395088994,1764420229548,555.03244354,0.00014659,2]
[395088995,1764420229718,692.15312584,0.00014659,2]
[395088996,1764420232059,-614.71146789,0.00014759,2]
[395088997,1764420234802,221.49377174,0.00014659,2]
[395088998,1764420236382,-500.0,0.00014759,2]
[395088999,1764420238067,-891.71688568,0.00014759,2]
[395089000,1764420239939,-249.54801596,0.00014759,2]
[395089001,1764420241765,300.0,0.00014758,2]
[395089002,1764420244048,-500.0,0.00014759,2]
[395089003,1764420245918,-500.0,0.00014759,2]
[395089004,1764420247086,-500.04645846,0.00014759,2]
[395089005,1764420255309,620.3746,0.00014659,2]
[395089006,1764420256867,-246.70617127,0.00014759,2]
[395089007,1764420259407,-605.57208177,0.00014759,2]
[395089008,1764420259857,222.65612674,0.0001456,2]
[395089009,1764420265980,-500.0,0.00014759,2]
[395089010,1764420267771,-167.48453338,0.00014759,2]
[395089011,1764420269948,-225.43286318,0.00014759,2]
[395089012,1764420271415,-195.04354709,0.00014759,2]
[395089013,1764420273365,-500.0,0.00014759,2]
[395089014,1764420276883,-500.0,0.00014759,2]
[395089015,1764420278243,-160.98795251,0.00014759,2]
[395089017,1764420283739,-500.0,0.00014759,2]
[395089018,1764420285341,-191.43954845,0.00014759,2]
[395089019,1764420287445,-280.15032197,0.00014759,2]
[395089020,1764420292359,-244.61167602,0.00014759,2]
[395089021,1764420294488,-499.99999983,0.00014759,2]
[395089022,1764420296043,-300.0,0.00014759,2]
[395089023,1764420299940,-195.31373055,0.00014759,2]
[395089024,1764420302017,-173.66389438,0.00014758,2]
[395089026,1764420305427,-154.53971988,0.00014758,2]
[395089027,1764420309061,-84.40883275,0.00014758,2]
[395089028,1764420309085,-110.59116725,0.00014758,2]
[395089029,1764420311502,-276.20924308,0.00014758,2]
[395089031,1764420317291,-181.63787305,0.00014758,2]
[395089032,1764420317322,-1026.33610562,0.00014758,2]
[395089033,1764420317353,-300.0,0.00014758,2]
[395089034,1764420317383,-150.0,0.00014758,2]
[395089035,1764420317413,-300.0,0.00014758,2]
[395089036,1764420317448,-210.28007628,0.00014759,2]
[395089037,1764420320890,-500.0,0.00014759,2]
[395089038,1764420321430,500.0,0.00014758,2]
[395089039,1764420321496,500.0,0.00014758,2]
[395089040,1764420321536,500.0,0.00014758,2]
[395089041,1764420321589,500.0,0.00014758,2]
[395089042,1764420322115,500.0,0.00014758,2]
[395089043,1764420322167,500.0,0.00014758,2]
[395089044,1764420322235,500.0,0.00014758,2]
[395089045,1764420322276,500.0,0.00014758,2]
[395089046,1764420322338,500.0,0.00014758,2]
[395089047,1764420322485,500.0,0.00014758,2]
[395089048,1764420322543,500.0,0.00014758,2]
[395089049,1764420322607,500.0,0.00014758,2]
[395089050,1764420322667,84.06204266,0.00014758,2]
[395089051,1764420322696,264.70602658,0.00014758,2]
[395089052,1764420322852,500.0,0.00014758,2]
[395089053,1764420324336,376.96755827,0.00014758,2]
[395089054,1764420325760,-161.98,0.00014759,2]
[395089055,1764420328225,-323.2852829,0.00014759,2]
[395089056,1764420334559,-302.0,0.00014759,2]
[395089058,1764420338468,171.0,6.8e-07,2]
[395089059,1764420340368,-1365.28189182,0.00014759,2]
[395089060,1764420344610,500.0,0.00014758,2]
[395089061,1764420344726,500.0,0.00014758,2]
[395089062,1764420344807,440.5256612,0.00014758,2]
[395089063,1764420344945,500.0,0.00014758,2]
[395089064,1764420345288,-284.2868803,0.00014759,2]
[395089065,1764420349580,-451.0,0.00014759,2]
[395089066,1764420355547,-255.92714014,0.00014759,2]
[395089067,1764420357974,170.00706666,0.00014758,2]
[395089069,1764420361662,500.0,0.00014758,2]
[395089070,1764420361726,216.6803618,0.00014758,2]
[395089071,1764420363086,-274.56713682,0.00014759,2]
[395089072,1764420370443,-215.60299496,0.00014758,2]
[395089073,1764420377656,-160.63903389,0.00014758,2]
[395089075,1764420385528,-123.75797115,0.00014758,2]
[395089076,1764420385551,-376.24202885,0.00014758,2]
[395089077,1764420388548,2500.0,0.00014659,2]
[395089078,1764420392510,-93.66945384,0.00014758,2]
[395089079,1764420392533,-101.33054616,0.00014758,2]
[395089080,1764420399264,-154.59659398,0.00014758,2]
[395089081,1764420402872,-173.31590327,0.00014759,2]
[395089083,1764420409936,-350.0,0.00014759,2]
[395089084,1764420411915,406.74316143,0.00014758,2]
[395089085,1764420413208,1993.56717472,0.00014758,2]
[395089086,1764420416267,-302.0,0.00014759,2]
[395089087,1764420421558,-302.63318054,0.00014758,2]
[395089095,1764420424969,-197.36681946,0.00014758,2]
[395089096,1764420424990,-41.46056443,0.00014758,2]
[395089110,1764420429394,600.0,0.00014659,2]
[395089118,1764420431766,-308.53943557,0.00014758,2]
[395089119,1764420431791,-28.2741103,0.00014758,2]
[395089138,1764420438123,-151.0,0.00014756,2]
[395089140,1764420438144,-271.7258897,0.00014758,2]
[395089141,1764420438167,-28.30647219,0.00014759,2]
[395089164,1764420444877,-184.82968071,0.00014759,2]
[395089165,1764420452771,-168.7131197,0.00014759,2]
[395089166,1764420463943,-156.10674992,0.00014759,2]
[395089167,1764420467007,1500.0,0.00013978,2]
[395089168,1764420472335,3849.079914,0.00014685,2]
[395089169,1764420477182,-500.0,0.00014759,2]
[395089170,1764420485551,280.8168,0.00014659,2]
[395089171,1764420487788,-174.684007,0.00014759,2]
[395089172,1764420494328,1000.0,0.00014659,2]
[395089173,1764420494924,-150.0,0.00014758,2]
[395089174,1764420494945,-92.52206028,0.00014758,2]
[395089175,1764420499754,-400.34440381,0.00014758,2]
[395089176,1764420506032,-7.13353591,0.00014758,2]
[395089177,1764420506056,-308.23795862,0.00014758,2]
[395089178,1764420514670,-191.76204138,0.00014758,2]
[395089179,1764420514694,-308.23795862,0.00014759,2]
[395089180,1764420514750,772.84285108,0.00014659,2]
[395089181,1764420523348,-174.684007,0.00014758,2]
[395089182,1764420523374,-476.315993,0.00014759,2]
[395089183,1764420529488,-525.77771,0.00014759,2]
[395089184,1764420533816,5202.26,0.00014006,2]
[395089185,1764420534788,1868.5897,0.00012,2]
[395089186,1764420536804,-272.43286335,0.00014759,2]
[395089187,1764420541486,13517.0,0.000147,2]
[395089188,1764420544618,-210.0,0.00014758,2]
[395089189,1764420545622,300.0,0.00014699,2]
[395089198,1764420547987,397.73360679,0.00014659,2]
[395089211,1764420552469,-290.0,0.00014758,2]
[395089212,1764420552494,-210.0,0.00014759,2]
[395089213,1764420554368,2500.0,0.00014659,2]
[395089214,1764420559619,-231.38632683,0.00014759,2]
[395089219,1764420564112,-500.0,0.00014758,2]
[395089220,1764420564137,-150.0,0.00014759,2]
[395089221,1764420567821,1368.33,0.00014702,2]
[395089222,1764420569393,-272.15102962,0.00014759,2]
[395089224,1764420575503,-163.73263199,0.00014759,2]
[395089225,1764420580480,-326.57291601,0.00014759,2]
[395089226,1764420584646,10029.17872629,0.00014659,2]
[395089227,1764420586778,-283.07274848,0.00014759,2]
[395089228,1764420591030,-4354.43890406,0.00014759,2]
[395089229,1764420591119,-10000.01,0.00014759,2]
[395089230,1764420591402,-10000.01,0.00014759,2]
[395089231,1764420591490,-10000.01,0.00014759,2]
[395089232,1764420591673,-10000.01,0.00014759,2]
[395089233,1764420594624,-278.92725152,0.00014759,2]
[395089234,1764420598815,-10000.01,0.00014759,2]
[395089235,1764420601617,-10000.01,0.00014759,2]
[395089236,1764420601731,-10000.01,0.00014759,2]
[395089237,1764420601836,-10000.01,0.00014759,2]
[395089238,1764420601963,-10000.01,0.00014759,2]
[395089239,1764420602191,-10000.01,0.00014759,2]
[395089240,1764420602802,-210.28007629,0.00014759,2]
[395089241,1764420606754,-10000.01,0.00014759,2]
[395089242,1764420606812,-10000.01,0.00014759,2]
[395089243,1764420609427,-218.23092986,0.00014759,2]
[395089244,1764420609994,-10000.01,0.00014759,2]
[395089245,1764420610027,-10000.01,0.00014759,2]
[395089246,1764420610060,-10000.01,0.00014759,2]
[395089247,1764420610133,-10000.01,0.00014759,2]
[395089248,1764420612632,2751.0,0.00013982,2]
[395089249,1764420613864,3775.260492,0.00014685,2]
[395089250,1764420615509,-171.01052842,0.00014759,2]
[395089251,1764420621115,-302.0,0.00014759,2]
[395089252,1764420626927,-500.0,0.00014759,2]
[395089273,1764420632462,500.0,0.00014659,2]
[395089274,1764420633872,-255.50665416,0.00014759,2]
[395089275,1764420637539,-69641.94032335,0.00014759,2]
[395089276,1764420637549,-154.53971988,0.00014759,2]
[395089277,1764420637558,-154.53971988,0.00014759,2]
[395089278,1764420637568,-195.0,0.00014759,2]
[395089279,1764420637577,-53941.5834692,0.00014759,2]
[395089280,1764420637588,-2000.0,0.00014759,2]
[395089281,1764420637598,-200.0,0.00014759,2]
[395089282,1764420637607,-7287.1160704,0.00014759,2]
[395089283,1764420637616,-200.0,0.00014759,2]
[395089284,1764420637627,-14942.7817004,0.00014759,2]
[395089285,1764420637636,-210.0,0.00014759,2]
[395089286,1764420637647,-54752.064506,0.00014759,2]
[395089287,1764420637657,-214.34,0.00014778,2]
[395089288,1764420637668,-195.0,0.0001479,2]
[395089289,1764420637678,-267.46074303,0.00014799,2]
[395089290,1764420637688,-151.0,0.00014799,2]
[395089291,1764420637698,-1000.0,0.00014799,2]
[395089292,1764420637709,-300.0,0.00014799,2]
[395089293,1764420637719,-314.25724306,0.00014799,2]
[395089294,1764420637729,-151.0,0.00014799,2]
[395089295,1764420637740,-5523.0,0.000148,3]
[395089296,1764420637750,-1000.0,0.00014854,2]
[395089297,1764420637759,-13238.36856056,0.00014854,2]
[395089298,1764420637769,-9999.99,0.00014863,2]
[395089299,1764420637780,-151.30085697,0.00014863,2]
[395089300,1764420637789,-225.36630223,0.000149,2]
[395089301,1764420637799,-200.0,0.00014907,2]
[395089302,1764420637810,-200.0,0.00014907,2]
[395089303,1764420637821,-169.1842498,0.00014927,2]
[395089304,1764420637831,-10690.57,0.00014944,2]
[395089305,1764420637842,-500.0,0.00014953,2]
[395089306,1764420637851,-500.0,0.00014953,2]
[395089307,1764420637861,-200.0,0.00014954,2]
[395089308,1764420637872,-151.0,0.00014954,2]
[395089309,1764420637882,-151.0,0.00014954,2]
[395089310,1764420637892,-151.0,0.00014954,2]
[395089311,1764420637905,-151.0,0.00014954,2]
[395089312,1764420637916,-151.0,0.00014954,2]
[395089313,1764420637925,-151.0,0.00014954,2]
[395089314,1764420637934,-151.0,0.00014954,2]
[395089315,1764420637947,-151.0,0.00014954,2]
[395089316,1764420637956,-151.0,0.00014954,2]
[395089317,1764420637969,-151.0,0.00014954,2]
[395089318,1764420637980,-151.0,0.00014954,2]
[395089319,1764420637991,-155.716458,0.00014954,2]
[395089321,1764420638000,-151.0,0.00014954,2]
[395089323,1764420638009,-171.847059,0.00014954,2]
[395089324,1764420638019,-151.0,0.00014954,2]
[395089325,1764420638028,-209.866005,0.00014954,2]
[395089326,1764420638037,-151.0,0.00014954,2]
[395089327,1764420638046,-151.0,0.00014954,2]
[395089328,1764420638055,-151.0,0.00014954,2]
[395089329,1764420638064,-151.0,0.00014954,2]
[395089330,1764420638073,-151.0,0.00014954,2]
[395089331,1764420638082,-151.0,0.00014954,2]
[395089332,1764420638091,-151.0,0.00014954,2]
[395089333,1764420638100,-151.0,0.00014954,2]
[395089334,1764420638109,-151.0,0.00014954,2]
[395089335,1764420638118,-246.846087,0.00014954,2]
[395089336,1764420638127,-382.764954,0.00014954,2]
[395089337,1764420638136,-382.764954,0.00014954,2]
[395089338,1764420638145,-382.764954,0.00014954,2]
[395089339,1764420638154,-382.764954,0.00014954,2]
[395089340,1764420638163,-382.764954,0.00014954,2]
[395089341,1764420638172,-382.764954,0.00014954,2]
[395089343,1764420638181,-382.764954,0.00014954,2]
[395089344,1764420638190,-382.764954,0.00014954,2]
[395089345,1764420638199,-382.764954,0.00014954,2]
[395089346,1764420638208,-382.764954,0.00014954,2]
[395089347,1764420638217,-382.764954,0.00014954,2]
[395089348,1764420638225,-382.764954,0.00014954,2]
[395089349,1764420638234,-151.0,0.00014954,2]
[395089350,1764420638243,-151.0,0.00014954,2]
[395089351,1764420638252,-163.743629,0.00014954,2]
[395089352,1764420638261,-150.0,0.00014954,2]
[395089353,1764420638270,-151.0,0.00014954,2]
[395089354,1764420638279,-151.0,0.00014954,2]
[395089355,1764420638288,-154.394258,0.00014954,2]
[395089356,1764420638297,-178.928303,0.00014954,2]
[395089357,1764420638307,-151.0,0.00014954,2]
[395089358,1764420638315,-151.0,0.00014954,2]
[395089359,1764420638325,-151.0,0.00014954,2]
[395089361,1764420638334,-151.0,0.00014954,2]
[395089363,1764420638343,-191.517002,0.00014954,2]
[395089365,1764420638352,-151.0,0.00014954,2]
[395089367,1764420638361,-151.0,0.00014954,2]
[395089369,1764420638371,-151.0,0.00014954,2]
[395089371,1764420638379,-151.0,0.00014954,2]
[395089373,1764420638389,-151.0,0.00014954,2]
[395089375,1764420638398,-151.0,0.00014954,2]
[395089377,1764420638407,-150.0,0.00014954,2]
[395089379,1764420638418,-169.38238217,0.00014954,2]
[395089381,1764420638427,-151.0,0.00014954,2]
[395089383,1764420638437,-151.0,0.00014954,2]
[395089385,1764420638446,-151.0,0.00014954,2]
[395089387,1764420638455,-151.0,0.00014954,2]
[395089389,1764420638464,-151.0,0.00014954,2]
[395089390,1764420638473,-151.0,0.00014954,2]
[395089391,1764420638482,-151.0,0.00014954,2]
[395089392,1764420638492,-151.0,0.00014954,2]
[395089393,1764420638502,-151.0,0.00014954,2]
[395089394,1764420638511,-151.0,0.00014954,2]
[395089395,1764420638520,-151.0,0.00014954,2]
[395089396,1764420638529,-151.0,0.00014954,2]
[395089397,1764420638538,-151.0,0.00014954,2]
[395089398,1764420638547,-151.0,0.00014954,2]
[395089399,1764420638557,-151.0,0.00014954,2]
[395089400,1764420638566,-151.0,0.00014954,2]
[395089401,1764420638575,-151.0,0.00014954,2]
[395089402,1764420638584,-151.0,0.00014954,2]
[395089403,1764420638594,-151.0,0.00014954,2]
[395089404,1764420638603,-151.0,0.00014954,2]
[395089405,1764420638612,-151.0,0.00014954,2]
[395089406,1764420638622,-151.0,0.00014954,2]
[395089407,1764420638631,-151.0,0.00014954,2]
[395089408,1764420638641,-151.0,0.00014954,2]
[395089409,1764420638651,-151.0,0.00014954,2]
[395089410,1764420638661,-151.0,0.00014954,2]
[395089411,1764420638671,-151.0,0.00014954,2]
[395089412,1764420638680,-151.0,0.00014954,2]
[395089413,1764420638690,-151.0,0.00014954,2]
[395089414,1764420638700,-151.0,0.00014954,2]
[395089415,1764420638709,-151.0,0.00014954,2]
[395089416,1764420638719,-151.0,0.00014954,2]
[395089417,1764420638728,-151.0,0.00014954,2]
[395089418,1764420638737,-163.484644,0.00014954,2]
[395089419,1764420638746,-151.0,0.00014954,2]
[395089420,1764420638755,-151.0,0.00014954,2]
[395089421,1764420638765,-151.0,0.00014954,2]
[395089422,1764420638774,-151.0,0.00014954,2]
[395089423,1764420638783,-151.0,0.00014954,2]
[395089424,1764420638801,-151.0,0.00014954,2]
[395089425,1764420638813,-217.550971,0.00014954,2]
[395089426,1764420638822,-151.0,0.00014954,2]
[395089427,1764420638832,-151.0,0.00014954,2]
[395089428,1764420638842,-186.348748,0.00014954,2]
[395089429,1764420638851,-151.0,0.00014954,2]
[395089430,1764420638861,-151.0,0.00014954,2]
[395089431,1764420638870,-151.0,0.00014954,2]
[395089432,1764420638880,-151.0,0.00014954,2]
[395089433,1764420638890,-151.0,0.00014954,2]
[395089434,1764420638900,-151.0,0.00014954,2]
[395089435,1764420638910,-151.0,0.00014954,2]
[395089436,1764420638920,-151.0,0.00014954,2]
[395089437,1764420638929,-151.0,0.00014954,2]
[395089438,1764420638939,-151.0,0.00014954,2]
[395089439,1764420638949,-151.0,0.00014954,2]
[395089440,1764420638958,-151.0,0.00014954,2]
[395089441,1764420638968,-151.0,0.00014954,2]
[395089442,1764420638978,-151.0,0.00014954,2]
[395089443,1764420638988,-151.0,0.00014954,2]
[395089444,1764420638998,-151.0,0.00014954,2]
[395089445,1764420639008,-209.594743,0.00014954,2]
[395089446,1764420639018,-151.0,0.00014954,2]
[395089447,1764420639027,-151.0,0.00014954,2]
[395089448,1764420639037,-151.0,0.00014954,2]
[395089449,1764420639046,-151.0,0.00014954,2]
[395089450,1764420639056,-151.0,0.00014954,2]
[395089451,1764420639066,-151.0,0.00014954,2]
[395089452,1764420639076,-151.0,0.00014954,2]
[395089453,1764420639085,-151.0,0.00014954,2]
[395089454,1764420639095,-151.0,0.00014954,2]
[395089455,1764420639105,-151.0,0.00014954,2]
[395089456,1764420639115,-151.0,0.00014954,2]
[395089457,1764420639124,-151.0,0.00014954,2]
[395089458,1764420639134,-151.0,0.00014954,2]
[395089459,1764420639144,-151.0,0.00014954,2]
[395089460,1764420639159,-151.0,0.00014954,2]
[395089461,1764420639169,-151.0,0.00014954,2]
[395089462,1764420639178,-151.0,0.00014954,2]
[395089463,1764420639189,-151.0,0.00014954,2]
[395089464,1764420639199,-151.0,0.00014954,2]
[395089465,1764420639208,-151.0,0.00014954,2]
[395089466,1764420639218,-151.0,0.00014954,2]
[395089467,1764420639228,-151.0,0.00014954,2]
[395089468,1764420639237,-151.0,0.00014954,2]
[395089469,1764420639248,-151.0,0.00014954,2]
[395089470,1764420639258,-151.0,0.00014954,2]
[395089471,1764420639267,-151.0,0.00014954,2]
[395089472,1764420639277,-151.0,0.00014954,2]
[395089473,1764420639290,-151.0,0.00014954,2]
[395089474,1764420639301,-151.0,0.00014954,2]
[395089475,1764420639311,-151.0,0.00014954,2]
[395089476,1764420639320,-151.0,0.00014954,2]
[395089477,1764420639330,-234.506135,0.00014954,2]
[395089478,1764420639339,-234.506135,0.00014954,2]
[395089479,1764420639349,-234.506135,0.00014954,2]
[395089480,1764420639360,-234.506135,0.00014954,2]
[395089481,1764420639370,-600.0,0.00014954,2]
[395089482,1764420639380,-234.506135,0.00014954,2]
[395089483,1764420639390,-234.506135,0.00014954,2]
[395089484,1764420639400,-234.506135,0.00014954,2]
[395089485,1764420639409,-234.506135,0.00014954,2]
[395089486,1764420639419,-189.259375,0.00014954,2]
[395089487,1764420639429,-189.259375,0.00014954,2]
[395089488,1764420639439,-189.259375,0.00014954,2]
[395089489,1764420639449,-189.259375,0.00014954,2]
[395089490,1764420639459,-179.036992,0.00014954,2]
[395089491,1764420639468,-189.259375,0.00014954,2]
[395089492,1764420639478,-189.259375,0.00014954,2]
[395089493,1764420639488,-179.036992,0.00014954,2]
[395089494,1764420639498,-189.259375,0.00014954,2]
[395089495,1764420639507,-189.259375,0.00014954,2]
[395089496,1764420639517,-179.036992,0.00014954,2]
[395089497,1764420639527,-179.036992,0.00014954,2]
[395089498,1764420639536,-245.0,0.00014954,2]
[395089499,1764420639546,-245.0,0.00014954,2]
[395089500,1764420639556,-245.0,0.00014954,2]
[395089501,1764420639566,-245.0,0.00014954,2]
[395089502,1764420639575,-245.0,0.00014954,2]
[395089503,1764420639585,-245.0,0.00014954,2]
[395089504,1764420639595,-245.0,0.00014954,2]
[395089505,1764420639605,-245.0,0.00014954,2]
[395089506,1764420639614,-151.0,0.00014954,2]
[395089507,1764420639625,-151.0,0.00014954,2]
[395089508,1764420639635,-151.0,0.00014954,2]
[395089509,1764420639645,-151.0,0.00014954,2]
[395089510,1764420639655,-151.0,0.00014954,2]
[395089511,1764420639667,-151.0,0.00014954,2]
[395089512,1764420639677,-151.0,0.00014954,2]
[395089513,1764420639687,-151.0,0.00014954,2]
[395089514,1764420639697,-152.865061,0.00014954,2]
[395089515,1764420639707,-151.0,0.00014954,2]
[395089516,1764420639716,-151.0,0.00014954,2]
[395089517,1764420639725,-151.0,0.00014954,2]
[395089518,1764420639735,-151.0,0.00014954,2]
[395089519,1764420639744,-151.0,0.00014954,2]
[395089520,1764420639754,-151.0,0.00014954,2]
[395089521,1764420639764,-155.099146,0.00014954,2]
[395089522,1764420639773,-151.0,0.00014954,2]
[395089523,1764420639782,-151.0,0.00014954,2]
[395089524,1764420639793,-151.0,0.00014954,2]
[395089525,1764420639803,-151.0,0.00014954,2]
[395089526,1764420639812,-151.0,0.00014954,2]
[395089527,1764420639821,-151.0,0.00014954,2]
[395089528,1764420639831,-151.0,0.00014954,2]
[395089529,1764420639842,-151.0,0.00014954,2]
[395089530,1764420639851,-151.0,0.00014954,2]
[395089531,1764420639861,-163.449452,0.00014954,2]
[395089532,1764420639871,-151.0,0.00014954,2]
[395089533,1764420639879,-151.0,0.00014954,2]
[395089534,1764420639889,-151.0,0.00014954,2]
[395089535,1764420639900,-151.0,0.00014954,2]
[395089536,1764420639912,-151.0,0.00014954,2]
[395089537,1764420639923,-151.0,0.00014954,2]
[395089538,1764420639933,-151.0,0.00014954,2]
[395089539,1764420639943,-151.0,0.00014954,2]
[395089540,1764420639951,-151.0,0.00014954,2]
[395089541,1764420639961,-151.0,0.00014954,2]
[395089542,1764420639971,-151.0,0.00014954,2]
[395089543,1764420639980,-151.0,0.00014954,2]
[395089544,1764420639989,-151.0,0.00014954,2]
[395089545,1764420639999,-292.876809,0.00014954,2]
[395089546,1764420640008,-151.0,0.00014954,2]
[395089547,1764420640017,-151.0,0.00014954,2]
[395089548,1764420640027,-173.001778,0.00014954,2]
[395089549,1764420640036,-151.0,0.00014954,2]
[395089550,1764420640045,-151.0,0.00014954,2]
[395089551,1764420640055,-151.0,0.00014954,2]
[395089552,1764420640064,-151.0,0.00014954,2]
[395089553,1764420640074,-151.0,0.00014954,2]
[395089554,1764420640083,-151.0,0.00014954,2]
[395089555,1764420640093,-151.0,0.00014954,2]
[395089556,1764420640102,-151.0,0.00014954,2]
[395089557,1764420640111,-151.0,0.00014954,2]
[395089558,1764420640121,-151.0,0.00014954,2]
[395089559,1764420640129,-151.0,0.00014954,2]
[395089560,1764420640138,-151.0,0.00014954,2]
[395089561,1764420640147,-151.0,0.00014954,2]
[395089562,1764420640156,-151.0,0.00014954,2]
[395089563,1764420640166,-151.0,0.00014954,2]
[395089564,1764420640176,-151.0,0.00014954,2]
[395089565,1764420640186,-151.0,0.00014954,2]
[395089566,1764420640195,-151.0,0.00014954,2]